[Event "V. Korchnoi Memorial 2019"]
[Site "St. Petersburg"]
[Date "2019.08.17"]
[Round "4.9"]
[White "Lintchevski, Daniil"]
[Black "Makoveev, Ilya"]
[Result "1-0"]
[ECO "B90"]
[WhiteElo "2538"]
[BlackElo "2299"]
[Annotator "ChessBase"]
[PlyCount "149"]
[EventDate "2019.08.13"]
[EventType "swiss"]
[EventCountry "RUS"]
[SourceTitle "playchess.com"]
[Source "ChessBase"]
[SourceQuality "1"]
[TimeControl "5400+30"]

1. e4 {[%emt 0:00:00]} c5 {[%emt 0:00:00]} 2. Nf3 {[%emt 0:00:00]} d6 {[%emt 0:00:00]} 3. d4 {[%emt 0:00:01]} cxd4 {[%emt 0:00:10]} 4. Nxd4 {[%emt 0:00:05]} Nf6 {[%emt 0:00:21]} 5. Nc3 {[%emt 0:00:07]} a6 {[%emt 0:00:19]} 6. h3 {[%emt 0:00:06]} e5 {[%emt 0:00:40]} 7. Nf3 {[%emt 0:00:05]} Be7 {[%emt 0:12:40]} 8. Bc4 {[%emt 0:01:21]} O-O {[%emt 0:05:07]} 9. O-O {[%emt 0:00:04]} b5 {[%emt 0:01:02]} 10. Bd5 {[%emt 0:00:11]} Nxd5 {[%emt 0:03:23]} 11. Qxd5 {[%emt 0:00:06]} Ra7 {[%emt 0:00:10]} 12. Be3 {[%emt 0:00:06]} Be6 {[%emt 0:12:21]} 13. Qd2 {[%emt 0:00:29]} Rb7 {[%emt 0:00:49]} 14. Nd5 {[%emt 0:00:38]} f5 {[%emt 0:12:25]} 15. Bg5 {[%emt 0:17:59]} Nc6 {[%emt 0:03:13]} 16. Nxe7+ {[%emt 0:04:31]} Nxe7 {[%emt 0:01:16]} 17. Rad1 {[%emt 0:00:53]} Rd7 {[%emt 0:01:34]} 18. exf5 {[%emt 0:01:19]} Bxf5 {[%emt 0:05:42]} 19. Nh4 {[%emt 0:05:30]} Be6 {[%emt 0:04:55]} 20. f4 {[%emt 0:01:07]} Qb6+ {[%emt 0:07:51]} 21. Kh2 {[%emt 0:00:06]} Nf5 {[%emt 0:02:34]} 22. Nxf5 {[%emt 0:00:31]} Rxf5 {[%emt 0:00:27]} 23. g4 {[%emt 0:00:08]} Rf8 {[%emt 0:01:06]} 24. f5 {[%emt 0:00:09]} Bc4 {[%emt 0:00:24]} 25. Rf2 {[%emt 0:03:22]} Qc7 {[%emt 0:14:47]} 26. Bh4 {[%emt 0:03:17]} Re8 {[%emt 0:04:33]} 27. Bg3 {[%emt 0:03:24]} Bf7 {[%emt 0:02:03]} 28. f6 {[%emt 0:01:47]} g6 {[%emt 0:01:09]} 29. Rf3 {[%emt 0:06:13]} Qb7 {[%emt 0:02:21]} 30. Rd3 {[%emt 0:05:53]} Re6 {[%emt 0:00:11]} 31. Bh4 {[%emt 0:02:17]} Qc7 {[%emt 0:01:19]} 32. Qh6 {[%emt 0:08:11]} Be8 {[%emt 0:00:01]} 33. c3 {[%emt 0:00:16]} Rf7 {[%emt 0:00:39]} 34. Qd2 {[%emt 0:00:55]} Rd7 {[%emt 0:00:14]} 35. Qe3 {[%emt 0:02:15]} Bf7 {[%emt 0:00:35]} 36. b3 {[%emt 0:01:11]} Qc6 {[%emt 0:00:58]} 37. R3d2 {[%emt 0:02:58]} Qc7 {[%emt 0:00:28]} 38. Rd3 {[%emt 0:05:06]} Qc6 {[%emt 0:00:19]} 39. Qh6 {[%emt 0:00:13]} Be8 {[%emt 0:00:01]} 40. Qc1 {[%emt 0:00:33]} Bf7 {[%emt 0:00:21]} 41. c4 {[%emt 0:00:41]} bxc4 {[%emt 0:01:11]} 42. bxc4 {[%emt 0:00:01]} e4 {[%emt 0:00:49]} 43. Qh6 {[%emt 0:01:11]} Be8 {[%emt 0:00:05]} 44. Rc3 {[%emt 0:00:03]} Qb6 {[%emt 0:01:27]} 45. Qd2 {[%emt 0:05:45]} Bf7 {[%emt 0:00:00]} 46. c5 {[%emt 0:01:50]} Qd8 {[%emt 0:00:28]} 47. c6 {[%emt 0:02:34]} Rc7 {[%emt 0:00:02]} 48. Qh6 {[%emt 0:00:03]} Qf8 {[%emt 0:00:08]} 49. Qxf8+ Kxf8 {[%emt 0:00:01]} 50. Bg3 {[%emt 0:00:07]} Rc8 {[%emt 0:01:06]} 51. Bxd6+ {[%emt 0:00:07]} Ke8 {[%emt 0:00:37]} 52. Be7 {[%emt 0:00:10]} Re5 {[%emt 0:00:40]} 53. c7 {[%emt 0:03:16]} Rd5 {[%emt 0:00:36]} 54. Rxd5 {[%emt 0:00:10]} Bxd5 {[%emt 0:00:01]} 55. a3 {[%emt 0:00:05]} Kd7 {[%emt 0:00:13]} 56. Bd8 {[%emt 0:00:01]} Ke6 {[%emt 0:01:03]} 57. Kg3 {[%emt 0:00:01]} g5 {[%emt 0:00:22]} 58. Rc5 {[%emt 0:00:07]} e3 {[%emt 0:01:08]} 59. Rc3 {[%emt 0:01:35]} Kf7 {[%emt 0:00:20]} 60. Rxe3 {[%emt 0:00:05]} Be6 {[%emt 0:00:04]} 61. Re5 {[%emt 0:00:20]} h6 {[%emt 0:00:05]} 62. Rc5 {[%emt 0:00:05]} Bd7 {[%emt 0:00:09]} 63. Re5 {[%emt 0:00:19]} Be6 {[%emt 0:00:04]} 64. Kf3 {[%emt 0:00:05]} Ra8 {[%emt 0:00:03]} 65. Ra5 {[%emt 0:00:58]} Ke8 {[%emt 0:00:10]} 66. Ke3 {[%emt 0:00:34]} Kd7 {[%emt 0:00:24]} 67. Kd4 {[%emt 0:00:17]} Kd6 {[%emt 0:00:03]} 68. Re5 {[%emt 0:00:41]} Rc8 {[%emt 0:00:13]} 69. Re1 {[%emt 0:00:37]} Ra8 {[%emt 0:00:05]} 70. Rb1 {[%emt 0:00:09]} Rc8 {[%emt 0:00:15]} 71. Rb6+ {[%emt 0:00:08]} Kd7 {[%emt 0:00:04]} 72. Rxa6 {[%emt 0:00:07]} Bf7 {[%emt 0:00:04]} 73. a4 {[%emt 0:00:34]} Be6 {[%emt 0:00:11]} 74. a5 {[%emt 0:00:04]} Bg8 {[%emt 0:00:06]} 75. Rb6 {[%emt 0:00:06]} 1-0

[Event "V. Korchnoi Memorial 2019"]
[Site "St. Petersburg"]
[Date "2019.08.17"]
[Round "4.10"]
[White "Postnikov, Artem"]
[Black "Sorokin, Aleksey"]
[Result "0-1"]
[ECO "B19"]
[WhiteElo "2278"]
[BlackElo "2537"]
[Annotator "ChessBase"]
[PlyCount "82"]
[EventDate "2019.08.13"]
[EventType "swiss"]
[EventCountry "RUS"]
[SourceTitle "playchess.com"]
[Source "ChessBase"]
[SourceQuality "1"]
[TimeControl "5400+30"]

1. e4 {[%emt 0:08:32]} c6 {[%emt 0:00:00]} 2. d4 {[%emt 0:00:34]} d5 {[%emt 0:00:01]} 3. Nc3 {[%emt 0:00:30]} dxe4 {[%emt 0:00:23]} 4. Nxe4 {[%emt 0:00:12]} Bf5 {[%emt 0:00:13]} 5. Ng3 {[%emt 0:00:13]} Bg6 {[%emt 0:00:13]} 6. h4 {[%emt 0:00:20]} h6 {[%emt 0:00:25]} 7. Nf3 {[%emt 0:00:19]} e6 {[%emt 0:00:59]} 8. Ne5 {[%emt 0:01:07]} Bh7 {[%emt 0:00:22]} 9. Bd3 {[%emt 0:00:28]} Bxd3 {[%emt 0:00:29]} 10. Qxd3 {[%emt 0:00:06]} Nd7 {[%emt 0:00:12]} 11. f4 {[%emt 0:02:07]} Bb4+ {[%emt 0:00:23]} 12. c3 {[%emt 0:01:13]} Be7 {[%emt 0:00:07]} 13. Bd2 {[%emt 0:02:30]} Ngf6 {[%emt 0:00:27]} 14. O-O-O {[%emt 0:03:16]} O-O {[%emt 0:00:14]} 15. Qf3 {[%emt 0:05:49]} Qa5 {[%emt 0:07:49]} 16. Kb1 {[%emt 0:01:23]} Qd5 {[%emt 0:01:14]} 17. Rhe1 {[%emt 0:05:54]} Nxe5 {[%emt 0:12:02]} 18. fxe5 {[%emt 0:12:36]} Qxf3 {[%emt 0:00:15]} 19. gxf3 {[%emt 0:00:02]} Nd5 {[%emt 0:00:12]} 20. Ne4 {[%emt 0:04:17]} b5 {[%emt 0:09:13]} 21. h5 {[%emt 0:06:33]} Kh7 {[%emt 0:03:48]} 22. Rg1 {[%emt 0:08:17]} a5 {[%emt 0:05:46]} 23. Rdf1 {[%emt 0:02:36]} f5 {[%emt 0:03:46]} 24. Nf2 {[%emt 0:01:30]} b4 {[%emt 0:10:48]} 25. Nd3 {[%emt 0:06:15]} bxc3 {[%emt 0:01:43]} 26. bxc3 {[%emt 0:00:18]} c5 {[%emt 0:00:56]} 27. dxc5 {[%emt 0:02:21]} Rfc8 {[%emt 0:01:29]} 28. c4 {[%emt 0:04:37]} Rab8+ {[%emt 0:02:56]} 29. Ka1 {[%emt 0:01:13]} Nb4 {[%emt 0:00:12]} 30. Bxb4 {[%emt 0:02:31]} axb4 {[%emt 0:00:06]} 31. Rg6 {[%emt 0:01:48]} Bxc5 {[%emt 0:00:05]} 32. Nxc5 {[%emt 0:03:57]} Rxc5 {[%emt 0:00:05]} 33. Rxe6 {[%emt 0:00:37]} Rb7 {[%emt 0:00:12]} 34. Rc1 {[%emt 0:03:35]} b3 {[%emt 0:00:37]} 35. axb3 {[%emt 0:02:51]} Rxb3 {[%emt 0:00:37]} 36. Ra6 {[%emt 0:00:27]} Rxf3 {[%emt 0:02:04]} 37. Ra7 {[%emt 0:02:18]} f4 {[%emt 0:00:25]} 38. e6 {[%emt 0:03:19]} Re3 {[%emt 0:00:47]} 39. e7 {[%emt 0:01:48]} f3 {[%emt 0:01:44]} 40. Rf1 {[%emt 0:00:04]} Rxh5 {[%emt 0:00:25]} 41. Rxf3 {[%emt 0:00:23]} Rh1+ {[%emt 0:00:18]} 0-1

[Event "V. Korchnoi Memorial 2019"]
[Site "St. Petersburg"]
[Date "2019.08.18"]
[Round "5.4"]
[White "Kovalchuk, Alexey"]
[Black "Gareyev, Timur"]
[Result "0-1"]
[ECO "C50"]
[WhiteElo "2383"]
[BlackElo "2600"]
[Annotator "ChessBase"]
[PlyCount "58"]
[EventDate "2019.08.13"]
[EventType "swiss"]
[EventCountry "RUS"]
[SourceTitle "playchess.com"]
[Source "ChessBase"]
[SourceQuality "1"]
[TimeControl "5400+30"]

1. e4 {[%emt 0:25:35]} e5 {[%emt 0:02:47]} 2. Nf3 {[%emt 0:03:39]} Nc6 {[%emt 0:05:09]} 3. Bc4 {[%emt 0:01:02]} Bc5 {[%emt 0:00:14]} 4. d3 {[%emt 0:00:24]} d6 {[%emt 0:00:53]} 5. c3 {[%emt 0:00:25]} Qf6 {[%emt 0:02:35]} 6. O-O {[%emt 0:05:59]} Nge7 {[%emt 0:39:48]} 7. b4 {[%emt 0:18:47]} Bb6 {[%emt 0:00:02]} 8. a4 {[%emt 0:00:12]} a6 {[%emt 0:00:18]} 9. Bb3 {[%emt 0:01:56]} O-O {[%emt 0:04:17]} 10. Nbd2 {[%emt 0:00:27]} Ba7 {[%emt 0:01:19]} 11. Nc4 {[%emt 0:13:02]} Bg4 {[%emt 0:04:38]} 12. b5 {[%emt 0:02:20]} Nd8 {[%emt 0:01:48]} 13. Be3 {[%emt 0:04:02]} Ne6 {[%emt 0:02:40]} 14. Ncd2 {[%emt 0:07:30]} Nf4 {[%emt 0:00:44]} 15. d4 {[%emt 0:01:39]} Neg6 {[%emt 0:00:31]} 16. bxa6 {[%emt 0:05:55]} bxa6 {[%emt 0:00:47]} 17. Bc4 {[%emt 0:00:13]} Nh4 {[%emt 0:15:00]} 18. Bxf4 {[%emt 0:00:28]} Qxf4 {[%emt 0:00:03]} 19. Be2 {[%emt 0:00:09]} Nxf3+ {[%emt 0:02:30]} 20. Nxf3 {[%emt 0:01:29]} Qxe4 {[%emt 0:00:30]} 21. dxe5 {[%emt 0:02:39]} dxe5 {[%emt 0:00:20]} 22. Bxa6 {[%emt 0:00:07]} Rad8 {[%emt 0:05:59]} 23. Qe2 {[%emt 0:01:20]} Qg6 {[%emt 0:00:25]} 24. Bb7 {[%emt 0:00:50]} c6 {[%emt 0:01:32]} 25. Rfe1 {[%emt 0:00:24]} Rd7 {[%emt 0:01:37]} 26. Rab1 {[%emt 0:01:34]} Re7 {[%emt 0:01:54]} 27. Rb4 {[%emt 0:00:52]} e4 {[%emt 0:00:32]} 28. Nh4 {[%emt 0:00:21]} Qg5 {[%emt 0:00:10]} 29. Qa6 {[%emt 0:00:14]} Bxf2+ {[%emt 0:01:01]} 0-1

[Event "V. Korchnoi Memorial 2019"]
[Site "St. Petersburg"]
[Date "2019.08.18"]
[Round "5.5"]
[White "Goganov, Aleksey"]
[Black "Bryakin, Mikhail"]
[Result "1-0"]
[ECO "D12"]
[WhiteElo "2564"]
[BlackElo "2428"]
[Annotator "ChessBase"]
[PlyCount "81"]
[EventDate "2019.08.13"]
[EventType "swiss"]
[EventCountry "RUS"]
[SourceTitle "playchess.com"]
[Source "ChessBase"]
[SourceQuality "1"]
[TimeControl "5400+30"]

1. d4 {[%emt 0:00:00]} d5 {[%emt 0:00:00]} 2. c4 {[%emt 0:00:00]} c6 {[%emt 0:00:00]} 3. Nf3 {[%emt 0:00:00]} Nf6 {[%emt 0:00:00]} 4. e3 {[%emt 0:00:00]} Bf5 {[%emt 0:00:27]} 5. Nc3 {[%emt 0:00:00]} e6 {[%emt 0:00:31]} 6. Nh4 {[%emt 0:00:00]} Be4 {[%emt 0:00:37]} 7. f3 {[%emt 0:00:07]} Bg6 {[%emt 0:00:07]} 8. Qb3 {[%emt 0:00:13]} Qc7 {[%emt 0:00:18]} 9. Bd2 {[%emt 0:00:23]} Be7 {[%emt 0:00:35]} 10. cxd5 {[%emt 0:00:21]} cxd5 {[%emt 0:00:41]} 11. Nxg6 {[%emt 0:00:05]} hxg6 {[%emt 0:00:06]} 12. O-O-O {[%emt 0:00:06]} Nc6 {[%emt 0:00:54]} 13. Kb1 {[%emt 0:00:16]} a6 {[%emt 0:01:11]} 14. Rc1 {[%emt 0:02:28]} Kf8 {[%emt 0:00:24]} 15. g4 {[%emt 0:09:23]} Na5 {[%emt 0:07:01]} 16. Qd1 {[%emt 0:00:13]} Nc4 {[%emt 0:02:15]} 17. g5 {[%emt 0:00:51]} Ne8 {[%emt 0:06:18]} 18. e4 {[%emt 0:05:01]} Qb6 {[%emt 0:31:06]} 19. Bxc4 {[%emt 0:00:28]} dxc4 {[%emt 0:00:07]} 20. d5 {[%emt 0:02:31]} Qd8 {[%emt 0:03:04]} 21. f4 {[%emt 0:06:21]} Nc7 {[%emt 0:01:34]} 22. Be3 {[%emt 0:00:40]} exd5 {[%emt 0:01:14]} 23. exd5 {[%emt 0:05:35]} Qd7 {[%emt 0:02:20]} 24. Ka1 {[%emt 0:09:19]} Rh3 {[%emt 0:01:47]} 25. Bb6 {[%emt 0:15:28]} Rd3 {[%emt 0:03:22]} 26. Qc2 {[%emt 0:00:23]} Rc8 {[%emt 0:08:55]} 27. Bxc7 {[%emt 0:05:35]} Qxc7 {[%emt 0:01:42]} 28. h4 {[%emt 0:03:10]} Qxf4 {[%emt 0:02:52]} 29. h5 {[%emt 0:00:20]} Bxg5 {[%emt 0:10:47]} 30. hxg6 {[%emt 0:02:46]} Bh6 {[%emt 0:00:17]} 31. Rcf1 {[%emt 0:01:21]} Qd6 {[%emt 0:02:44]} 32. gxf7 {[%emt 0:09:11]} Rc7 {[%emt 0:02:56]} 33. Qa4 {[%emt 0:00:25]} Rxf7 {[%emt 0:06:19]} 34. Qxc4 {[%emt 0:00:41]} Rdf3 {[%emt 0:02:44]} 35. Qc8+ {[%emt 0:00:12]} Ke7 {[%emt 0:00:02]} 36. Re1+ {[%emt 0:02:22]} Re3 {[%emt 0:01:18]} 37. Rxe3+ {[%emt 0:00:40]} Bxe3 {[%emt 0:00:00]} 38. Re1 {[%emt 0:00:10]} Rf3 {[%emt 0:01:13]} 39. Nd1 {[%emt 0:03:29]} Kf7 {[%emt 0:01:09]} 40. Nxe3 {[%emt 0:00:26]} Qb6 {[%emt 0:00:27]} 41. Nc4 {[%emt 0:00:31]} 1-0

[Event "V. Korchnoi Memorial 2019"]
[Site "St. Petersburg"]
[Date "2019.08.18"]
[Round "5.6"]
[White "Borisovsky, Dmitry"]
[Black "Lintchevski, Daniil"]
[Result "1/2-1/2"]
[ECO "B33"]
[WhiteElo "2326"]
[BlackElo "2538"]
[Annotator "ChessBase"]
[PlyCount "177"]
[EventDate "2019.08.13"]
[EventType "swiss"]
[EventCountry "RUS"]
[SourceTitle "playchess.com"]
[Source "ChessBase"]
[SourceQuality "1"]
[TimeControl "5400+30"]

1. e4 {[%emt 1:30:30]} c5 {[%emt 1:30:30]} 2. Nf3 {[%emt 0:00:30]} Nc6 {[%emt 0:00:30]} 3. d4 {[%emt 0:00:30]} cxd4 {[%emt 0:00:30]} 4. Nxd4 {[%emt 0:00:30]} Nf6 {[%emt 0:00:30]} 5. Nc3 {[%emt 0:00:30]} e5 {[%emt 0:00:30]} 6. Ndb5 {[%emt 0:00:30]} d6 {[%emt 0:00:30]} 7. Bg5 {[%emt 0:00:30]} a6 {[%emt 0:00:30]} 8. Na3 {[%emt 0:00:30]} Be6 {[%emt 0:00:30]} 9. Nc4 {[%emt 0:00:30]} Rb8 {[%emt 0:00:30]} 10. Nd5 {[%emt 0:00:30]} Bxd5 {[%emt 0:00:30]} 11. exd5 {[%emt 0:00:30]} Ne7 {[%emt 0:00:30]} 12. Bxf6 {[%emt 0:00:30]} gxf6 {[%emt 0:00:30]} 13. a4 {[%emt 0:00:30]} f5 {[%emt 0:00:30]} 14. a5 {[%emt 0:00:30]} Bg7 {[%emt 0:00:30]} 15. g4 {[%emt 0:00:30]} h5 {[%emt 0:00:30]} 16. gxf5 {[%emt 0:00:30]} Nxf5 {[%emt 0:00:30]} 17. Bh3 {[%emt 0:00:30]} Qh4 {[%emt 0:00:30]} 18. Bxf5 {[%emt 0:00:30]} Qxc4 {[%emt 0:00:30]} 19. c3 {[%emt 0:00:30]} b5 {[%emt 0:00:30]} 20. axb6 {[%emt 0:00:30]} Rxb6 {[%emt 0:00:30]} 21. Qa4+ {[%emt 0:00:30]} Qxa4 {[%emt 0:00:30]} 22. Rxa4 {[%emt 0:00:30]} Rxb2 {[%emt 0:00:30]} 23. Rxa6 {[%emt 0:00:30]} e4 {[%emt 0:00:30]} 24. O-O {[%emt 0:00:30]} Bxc3 {[%emt 0:00:30]} 25. Ra8+ {[%emt 0:00:30]} Ke7 {[%emt 0:00:30]} 26. Rxh8 {[%emt 0:00:30]} Bxh8 {[%emt 0:00:30]} 27. Re1 {[%emt 0:00:30]} Be5 {[%emt 0:00:30]} 28. Bxe4 {[%emt 0:00:30]} h4 {[%emt 0:00:30]} 29. h3 {[%emt 0:00:30]} Kf6 {[%emt 0:00:30]} 30. Bf3 {[%emt 0:00:30]} Kg5 {[%emt 0:00:30]} 31. Re2 {[%emt 0:00:30]} Rb4 {[%emt 0:00:30]} 32. Re4 {[%emt 0:00:30]} Rb1+ {[%emt 0:00:30]} 33. Kg2 {[%emt 0:00:30]} f5 {[%emt 0:00:30]} 34. Re2 {[%emt 0:00:30]} Rb4 {[%emt 0:00:30]} 35. Rd2 {[%emt 0:00:30]} Bd4 {[%emt 0:00:30]} 36. Bd1 {[%emt 0:00:30]} Bc5 {[%emt 0:00:30]} 37. Bc2 {[%emt 0:00:30]} Rc4 {[%emt 0:00:30]} 38. Bb3 {[%emt 0:00:30]} Rc3 {[%emt 0:00:30]} 39. Ba4 {[%emt 0:00:30]} Ra3 {[%emt 0:00:30]} 40. Bd7 {[%emt 0:00:30]} Rb3 {[%emt 0:00:30]} 41. Rc2 {[%emt 0:00:30]} Rd3 {[%emt 0:00:30]} 42. Be6 {[%emt 0:00:30]} f4 {[%emt 0:00:30]} 43. Bg4 {[%emt 0:00:30]} Rxd5 {[%emt 0:00:30]} 44. Bf3 {[%emt 0:00:30]} Rd3 {[%emt 0:00:30]} 45. Re2 {[%emt 0:00:30]} Bd4 {[%emt 0:00:30]} 46. Re8 {[%emt 0:00:30]} d5 {[%emt 0:00:30]} 47. Re2 {[%emt 0:00:30]} Bf6 {[%emt 0:00:30]} 48. Ra2 {[%emt 0:00:30]} Kf5 {[%emt 0:00:30]} 49. Re2 {[%emt 0:00:30]} Bc3 {[%emt 0:00:30]} 50. Bg4+ {[%emt 0:00:30]} Kg5 {[%emt 0:00:30]} 51. Ra2 {[%emt 0:00:30]} Bb4 {[%emt 0:00:30]} 52. Re2 {[%emt 0:00:30]} Bc3 {[%emt 0:00:30]} 53. Rc2 {[%emt 0:00:30]} Be5 {[%emt 0:00:30]} 54. Be2 {[%emt 0:00:30]} Rd4 {[%emt 0:00:30]} 55. Bf3 {[%emt 0:00:30]} Kf6 56. Rc6+ {[%emt 0:00:30]} Ke7 {[%emt 0:01:00]} 57. Bg4 {[%emt 0:00:30]} Bd6 {[%emt 0:00:30]} 58. Rc2 {[%emt 0:00:30]} Rd3 {[%emt 0:00:30]} 59. Be2 {[%emt 0:00:30]} Ra3 {[%emt 0:00:30]} 60. Rd2 {[%emt 0:00:30]} Ra5 {[%emt 0:00:30]} 61. Kf3 {[%emt 0:00:30]} Ke6 {[%emt 0:00:30]} 62. Kg4 {[%emt 0:00:30]} Bb4 {[%emt 0:00:30]} 63. Rb2 {[%emt 0:00:30]} Bc3 {[%emt 0:00:30]} 64. Rc2 {[%emt 0:00:30]} d4 {[%emt 0:00:30]} 65. Bc4+ {[%emt 0:00:30]} Kd6 {[%emt 0:00:30]} 66. Kxf4 {[%emt 0:00:30]} Ra4 {[%emt 0:00:30]} 67. Bd3 {[%emt 0:00:30]} Ra3 {[%emt 0:00:30]} 68. Ke4 {[%emt 0:00:30]} Ra1 {[%emt 0:00:30]} 69. Be2 {[%emt 0:00:30]} Kc5 {[%emt 0:00:30]} 70. Kd3 {[%emt 0:00:30]} Kb4 {[%emt 0:00:30]} 71. Bg4 {[%emt 0:00:30]} Ra3 {[%emt 0:00:30]} 72. Bf5 {[%emt 0:00:30]} Ra5 {[%emt 0:00:30]} 73. Bg4 {[%emt 0:00:30]} Ra1 {[%emt 0:00:30]} 74. Re2 {[%emt 0:00:30]} Ra3 {[%emt 0:00:30]} 75. Re8 {[%emt 0:00:30]} Ba1+ {[%emt 0:00:30]} 76. Kd2 {[%emt 0:00:30]} Ra2+ {[%emt 0:00:30]} 77. Kd3 {[%emt 0:00:30]} Rxf2 {[%emt 0:00:30]} 78. Rb8+ {[%emt 0:00:30]} Kc5 {[%emt 0:00:30]} 79. Rc8+ {[%emt 0:00:30]} Kd6 {[%emt 0:00:30]} 80. Rd8+ {[%emt 0:00:30]} Ke7 {[%emt 0:00:30]} 81. Rh8 {[%emt 0:00:30]} Ra2 {[%emt 0:00:30]} 82. Rxh4 {[%emt 0:00:30]} Ra3+ {[%emt 0:00:30]} 83. Kc4 {[%emt 0:00:30]} Rc3+ {[%emt 0:00:30]} 84. Kb4 {[%emt 0:00:30]} Rc1 {[%emt 0:00:30]} 85. Rh5 {[%emt 0:00:30]} d3 {[%emt 0:00:30]} 86. Rd5 {[%emt 0:00:30]} d2 {[%emt 0:00:30]} 87. Kb3 {[%emt 0:00:30]} Bc3 {[%emt 0:00:30]} 88. Rd3 {[%emt 0:00:30]} Ba5 {[%emt 0:00:30]} 89. Rd5 {[%emt 0:00:30]} 1/2-1/2

[Event "V. Korchnoi Memorial 2019"]
[Site "St. Petersburg"]
[Date "2019.08.18"]
[Round "5.7"]
[White "Sorokin, Aleksey"]
[Black "Yatzenko, Anton"]
[Result "0-1"]
[ECO "D20"]
[WhiteElo "2537"]
[BlackElo "2360"]
[Annotator "ChessBase"]
[PlyCount "52"]
[EventDate "2019.08.13"]
[EventType "swiss"]
[EventCountry "RUS"]
[SourceTitle "playchess.com"]
[Source "ChessBase"]
[SourceQuality "1"]
[TimeControl "5400+30"]

1. d4 {[%emt 0:00:00]} d5 {[%emt 0:00:00]} 2. c4 {[%emt 0:00:00]} dxc4 {[%emt 0:00:00]} 3. e3 {[%emt 0:01:07]} e5 {[%emt 0:00:00]} 4. Bxc4 {[%emt 0:01:12]} exd4 {[%emt 0:00:00]} 5. exd4 {[%emt 0:00:11]} Bd6 {[%emt 0:00:13]} 6. Nf3 {[%emt 0:00:26]} Nf6 {[%emt 0:00:05]} 7. O-O {[%emt 0:03:09]} O-O {[%emt 0:00:05]} 8. h3 {[%emt 0:00:49]} h6 {[%emt 0:00:13]} 9. Nc3 {[%emt 0:00:33]} Nc6 {[%emt 0:00:06]} 10. Qc2 {[%emt 0:00:39]} a6 {[%emt 0:00:35]} 11. a3 {[%emt 0:04:37]} Ne7 {[%emt 0:00:07]} 12. Ne4 {[%emt 0:08:34]} Nxe4 {[%emt 0:03:06]} 13. Qxe4 {[%emt 0:00:17]} c6 {[%emt 0:01:10]} 14. Ne5 {[%emt 0:07:57]} Bf5 {[%emt 0:03:02]} 15. Qf3 {[%emt 0:00:50]} Bxe5 {[%emt 0:06:44]} 16. dxe5 {[%emt 0:00:08]} Qd4 {[%emt 0:00:06]} 17. Qe2 {[%emt 0:06:47]} Rad8 {[%emt 0:04:08]} 18. e6 {[%emt 0:02:25]} fxe6 {[%emt 0:06:40]} 19. Bxe6+ {[%emt 0:02:13]} Kh8 {[%emt 0:02:48]} 20. Ba2 {[%emt 0:09:45]} Bd3 {[%emt 0:10:13]} 21. Qxe7 {[%emt 0:10:52]} Bxf1 {[%emt 0:00:26]} 22. Be3 {[%emt 0:00:10]} Qxb2 {[%emt 0:00:08]} 23. Rd1 {[%emt 0:04:24]} Rde8 {[%emt 0:00:40]} 24. Qh4 {[%emt 0:00:24]} Rxe3 {[%emt 0:01:13]} 25. Rxf1 {[%emt 0:00:45]} Rc3 {[%emt 0:01:51]} 26. Qd4 {[%emt 0:04:25]} Rc2 {[%emt 0:01:11]} 0-1

[Event "V. Korchnoi Memorial 2019"]
[Site "St. Petersburg"]
[Date "2019.08.18"]
[Round "5.8"]
[White "Protopopova, Anastasiya"]
[Black "Gasanov, Eldar"]
[Result "0-1"]
[ECO "D07"]
[WhiteElo "2274"]
[BlackElo "2475"]
[Annotator "ChessBase"]
[PlyCount "70"]
[EventDate "2019.08.13"]
[EventType "swiss"]
[EventCountry "RUS"]
[SourceTitle "playchess.com"]
[Source "ChessBase"]
[SourceQuality "1"]
[TimeControl "5400+30"]

1. d4 {[%emt 0:00:00]} Nf6 {[%emt 0:00:00]} 2. c4 {[%emt 0:00:00]} Nc6 {[%emt 0:00:08]} 3. Nf3 {[%emt 0:00:00]} e6 {[%emt 0:00:11]} 4. e3 {[%emt 0:00:36]} g6 {[%emt 0:06:09]} 5. Nc3 {[%emt 0:06:14]} Bg7 {[%emt 0:04:05]} 6. Be2 {[%emt 0:03:03]} O-O {[%emt 0:03:59]} 7. O-O {[%emt 0:00:21]} d5 {[%emt 0:02:09]} 8. a3 {[%emt 0:06:24]} Qe7 {[%emt 0:08:34]} 9. b4 {[%emt 0:10:09]} dxc4 {[%emt 0:01:42]} 10. Bxc4 {[%emt 0:00:13]} e5 {[%emt 0:02:37]} 11. b5 {[%emt 0:02:50]} exd4 {[%emt 0:02:23]} 12. exd4 {[%emt 0:01:26]} Na5 {[%emt 0:01:27]} 13. Ba2 {[%emt 0:00:06]} Qd6 {[%emt 0:09:25]} 14. Re1 {[%emt 0:11:10]} c5 {[%emt 0:13:43]} 15. a4 {[%emt 0:07:07]} c4 {[%emt 0:03:03]} 16. Bb1 {[%emt 0:03:15]} Qd8 {[%emt 0:05:06]} 17. Ba3 {[%emt 0:10:43]} Re8 {[%emt 0:00:35]} 18. h3 {[%emt 0:02:04]} Nb3 {[%emt 0:06:26]} 19. Ra2 {[%emt 0:00:29]} Rxe1+ {[%emt 0:00:57]} 20. Qxe1 {[%emt 0:00:14]} Be6 {[%emt 0:02:05]} 21. Bb2 {[%emt 0:05:28]} Nxd4 {[%emt 0:05:06]} 22. Nxd4 {[%emt 0:03:33]} Qxd4 {[%emt 0:00:14]} 23. Ne4 {[%emt 0:02:16]} Qd8 {[%emt 0:00:34]} 24. Nc5 {[%emt 0:05:54]} Bd5 {[%emt 0:01:13]} 25. Bc3 {[%emt 0:02:36]} Qc7 {[%emt 0:03:22]} 26. Bd4 {[%emt 0:01:47]} Ng4 {[%emt 0:02:25]} 27. hxg4 {[%emt 0:01:35]} Bxd4 {[%emt 0:00:05]} 28. Ne4 {[%emt 0:00:14]} c3 {[%emt 0:00:35]} 29. Rc2 {[%emt 0:01:29]} Qe5 {[%emt 0:01:11]} 30. Re2 {[%emt 0:01:17]} Bc4 {[%emt 0:01:11]} 31. Rc2 {[%emt 0:02:45]} f5 {[%emt 0:03:09]} 32. Rxc3 {[%emt 0:00:33]} Bxc3 {[%emt 0:00:50]} 33. Qxc3 {[%emt 0:00:17]} Qxc3 {[%emt 0:00:08]} 34. Nxc3 {[%emt 0:00:05]} Re8 {[%emt 0:00:50]} 35. Kh2 {[%emt 0:02:43]} Re1 {[%emt 0:00:53]} 0-1